[Event "76th Montenegro Championship 2024"]
[Site "Podgorica"]
[Date "2024.02.15"]
[Round "11.9"]
[White "Podlesnik, Bogdan"]
[Black "Tomic, Aleksandar"]
[Result "0-1"]
[ECO "B15"]
[WhiteElo "2284"]
[BlackElo "2398"]
[Annotator "TA"]
[PlyCount "118"]
[EventDate "2024.02.06"]
[EventType "swiss"]
[EventCountry "MNE"]
[SourceTitle "playchess.com"]
[Source "ChessBase"]
[SourceQuality "1"]
[TimeControl "40/5400+30:1800+30"]

{[%evp 11,118,5,8,6,23,14,10,0,0,0,0,0,0,0,12,-18,-10,-10,-19,-46,-46,-52,-38,-41,-26,-21,49,43,22,0,0,0,0,-93,-94,-93,-74,-85,-60,-89,-85,-141,-138,-183,-169,-179,-187,-177,-68,-175,-183,-166,-173,-186,0,-151,-142,-147,-132,-96,-92,-92,-112,-135,-83,-81,-79,-85,-79,-93,-91,-125,-103,-103,-90,-100,-81,-87,-75,-86,-75,-286,-259,-271,-264,-286,-287,-284,-301,-293,-301,-301,-301,-293,-285,-353,-334,-314,-239,-244,-245,-398,-380,-942,-914,-4827,-933,-4361,-1310]} 1. e4 {[%emt 0:03:20]} c6 {[%emt 0:05:26]} 2. d4 {[%emt 0:00:32]} d5 {[%emt 0:00:07]} 3. Nc3 {[%emt 0:00:09]} dxe4 {[%emt 0:01:01]} 4. Nxe4 {[%emt 0:00:09]} Nf6 {[%emt 0:00:01]} 5. Nxf6+ {[%emt 0:00:45]} exf6 {[%emt 0:00:02]} 6. Ne2 {[%emt 0:02:58] B15: Caro-Kann: 3 Nc3: 3...g6 and 3...dxe4 4 Nxe4 Nf6 5 Nxf6+ exf6.} Bd6 {[%emt 0:00:14]} 7. g3 {[%emt 0:01:06]} O-O {[%emt 0:02:03]} 8. Bg2 {[%emt 0:00:08]} Re8 {[%emt 0:00:51]} 9. O-O {[%emt 0:00:44]} Bg4 {[%emt 0:00:27]} 10. Re1 {[%emt 0:02:17]} Nd7 {[%emt 0:00:44]} 11. h3 {[%emt 0:03:00]} Bh5 {[%emt 0:02:35]} 12. c4 $146 {[%emt 0:11:25]} ({Predecessor:} 12. Qd3 Bg6 13. Qb3 Qb6 14. Be3 Qxb3 15. cxb3 Be4 16. Nc3 Bxg2 17. Kxg2 a6 18. Kf3 {0-1 Ruzicka,J (2243)-Jurcik,M (2426) Pardubice Czech op-E 31st 2020 (3.3)}) 12... Nf8 {[%emt 0:13:19]} 13. g4 {[%emt 0:05:43]} Bg6 {[%emt 0:00:12]} 14. d5 {[%emt 0:03:10]} (14. Nc3 {simplifies} Rxe1+ 15. Qxe1 Qd7 16. Be3) 14... cxd5 {[%emt 0:02:09]} 15. cxd5 {[%emt 0:03:19]} Qb6 {[%emt 0:04:54]} 16. Nc3 {[%emt 0:08:01]} Nd7 {[%emt 0:04:22]} 17. Re2 {[%emt 0:05:20]} Nc5 {[%emt 0:13:08]} 18. Be3 {[%emt 0:02:40] [#]} Rxe3 {[%emt 0:07:22]} (18... Qd8 $1 $11) 19. Rxe3 $14 {[%emt 0:03:05]} Qxb2 {[%emt 0:04:16]} 20. Qc1 {[%emt 0:09:05]} Qxc1+ {[%emt 0:01:57]} 21. Rxc1 {[%emt 0:00:05]} Bf4 {[%emt 0:00:08]} 22. Rd1 {[%emt 0:05:55]} (22. Nb5 $11 {remains equal.} Bxe3 23. fxe3) 22... Bxe3 $17 {[%emt 0:00:46]} 23. fxe3 {[%emt 0:00:01]} Rd8 {[%emt 0:02:28]} 24. e4 {[%emt 0:00:35]} Rc8 {[%emt 0:09:12]} 25. Kf2 {[%emt 0:11:21]} Nd7 {[%emt 0:12:22]} 26. Nb5 {[%emt 0:00:36]} ({Better is} 26. Ne2) 26... Rc2+ $17 {[%emt 0:01:20]} 27. Kg3 {[%emt 0:00:18]} a6 {[%emt 0:03:14]} (27... Rxa2 28. Rc1 h5 29. Rc8+ Kh7 30. gxh5 Bxh5 31. d6 $11) 28. Nd4 {[%emt 0:01:09]} Rc3+ $1 {[%emt 0:02:15]} (28... Rxa2 29. Rc1 $17) 29. Kf4 {[%emt 0:01:58]} Ne5 {[%emt 0:01:43]} (29... h6 $19 {Strongly threatening ...Bh7.} 30. Re1 Bh7) 30. Rd2 {[%emt 0:05:38]} (30. Ne2 $1 $15 Rc8 31. d6) 30... Nd3+ $1 $19 {[%emt 0:01:45]} 31. Ke3 {[%emt 0:01:23]} Ne1+ {[%emt 0:01:23]} 32. Kf4 {[%emt 0:01:55]} Nd3+ {[%emt 0:00:15]} (32... Nxg2+ 33. Rxg2 h6 (33... Rxh3 34. Rc2 $11) 34. Rc2 Rxc2 (34... Rxh3 $2 {too greedy.} 35. d6 $18) 35. Nxc2 $11) 33. Ke3 $1 {[%emt 0:00:24]} Nc5+ $1 {[%emt 0:00:39]} 34. Kf4 {[%emt 0:00:29]} b6 $1 {[%emt 0:01:27]} 35. Rc2 {[%emt 0:02:08]} Rd3 $1 {[%emt 0:01:06]} 36. Nb3 {[%emt 0:00:14] [#]} Rxd5 $1 {[%emt 0:01:08]} 37. h4 {[%emt 0:04:32] [#]} h6 {[%emt 0:00:32]} (37... h5 $142 $1 38. exd5 Bxc2 39. Nxc5 bxc5) 38. h5 $17 {[%emt 0:00:14]} Bh7 {[%emt 0:00:15]} 39. Nxc5 {[%emt 0:00:08]} Rxc5 {[%emt 0:01:14]} 40. Rd2 {[%emt 0:00:00]} g5+ {[%emt 0:00:00]} 41. Ke3 {[%emt 0:01:52]} Rc3+ {[%emt 0:04:23]} 42. Rd3 {[%emt 0:01:18]} Rc2 {[%emt 0:05:46]} (42... Rxd3+ 43. Kxd3 Kf8 44. Kd4 $17) 43. Rd2 {[%emt 0:00:28]} Rc1 {[%emt 0:00:32]} 44. Rd6 {[%emt 0:00:29]} Re1+ {[%emt 0:00:41]} 45. Kf2 {[%emt 0:00:58]} Ra1 {[%emt 0:00:10]} 46. Rxb6 $2 {[%emt 0:01:50]} (46. Rxf6 $17 Rxa2+ 47. Kg3) 46... Rxa2+ $19 {[%emt 0:00:23]} 47. Kg3 {[%emt 0:00:09]} Kg7 {[%emt 0:01:57]} 48. Rb8 {[%emt 0:01:13]} Ra4 {[%emt 0:05:20]} 49. Re8 {[%emt 0:00:14]} a5 {[%emt 0:00:54]} 50. Bf3 {[%emt 0:00:49]} Rb4 {[%emt 0:05:02]} 51. Kf2 {[%emt 0:00:11]} a4 {[%emt 0:03:15]} 52. Ke3 {[%emt 0:01:09]} Rb3+ {[%emt 0:01:32]} 53. Ke2 {[%emt 0:00:27]} a3 {[%emt 0:02:36]} 54. Ra8 {[%emt 0:03:29]} Rb2+ {[%emt 0:00:19]} 55. Ke3 {[%emt 0:00:20]} a2 {[%emt 0:00:21]} 56. Kd3 $2 {[%emt 0:00:31]} (56. Ra7 {was forced.}) 56... Bg8 $19 {[%emt 0:01:27]} 57. Ke3 $2 {[%emt 0:01:47]} (57. Ra7) 57... f5 $19 {[%emt 0:00:30]} 58. exf5 {[%emt 0:02:04]} f6 {[%emt 0:00:56]} 59. Kd4 {[%emt 0:02:36]} Rb1 {[%emt 0:01:05]} 0-1

[Event "76th Montenegro Championship 2024"]
[Site "Podgorica"]
[Date "2024.02.15"]
[Round "11.10"]
[White "Draganic, Veljko"]
[Black "Zherebtsova, Alexandra"]
[Result "1/2-1/2"]
[ECO "C45"]
[WhiteElo "2323"]
[BlackElo "2270"]
[Annotator "TA"]
[PlyCount "180"]
[EventDate "2024.02.06"]
[EventType "swiss"]
[EventCountry "MNE"]
[SourceTitle "playchess.com"]
[Source "ChessBase"]
[SourceQuality "1"]
[TimeControl "40/5400+30:1800+30"]

{[%evp 9,180,24,58,60,52,0,0,0,0,7,27,34,38,8,55,43,39,12,46,10,4,0,0,-12,-20,-20,0,0,28,0,64,60,124,118,122,114,117,112,108,108,153,153,153,153,153,120,153,153,153,146,153,153,153,153,153,153,230,226,232,0,213,147,149,116,116,116,115,0,152,152,152,152,152,152,152,152,158,152,155,166,154,162,262,151,244,168,162,158,219,183,220,203,208,208,267,267,344,267,267,267,268,0,264,257,303,215,216,208,297,0,0,0,0,0,0,0,0,0,0,0,0,0,0,0,0,0,0,0,0,0,0,0,0,0,0,0,0,0,0,0,0,0,0,0,0,0,0,0,0,0,0,0,0,0,0,-8,-8,-8,0,-8,0,-8,0,0,0,0,0,0,0,0,0,-8,0]} 1. e4 {[%emt 0:01:45]} e5 {[%emt 0:07:22]} 2. Nf3 {[%emt 0:00:04]} Nc6 {[%emt 0:00:20]} 3. d4 {[%emt 0:00:06]} exd4 {[%emt 0:00:11]} 4. Nxd4 {[%emt 0:00:05]} Qf6 {[%emt 0:00:43]} 5. Nf3 {[%emt 0:01:16]} Qg6 {[%emt 0:06:30][%cal Of8c5]} 6. Nc3 {[%emt 0:00:17]} Bb4 {[%emt 0:00:16]} 7. Bd2 {[%emt 0:00:19]} (7. Bd3 $14) 7... Bxc3 $11 {[%emt 0:10:48]} 8. Bxc3 {[%emt 0:00:04]} Qxe4+ {[%emt 0:02:55]} 9. Be2 {[%emt 0:00:04]} Nf6 {[%emt 0:05:22]} 10. O-O {[%emt 0:01:46]} O-O {[%emt 0:10:14]} 11. Re1 {[%emt 0:04:27] Threatens to win with Bxf6.} d5 {[%emt 0:12:18]} (11... Qf4 $11 {deserves consideration.}) 12. Bxf6 $14 {[%emt 0:33:20]} gxf6 {[%emt 0:00:04]} 13. Bb5 {[%emt 0:03:30]} Qb4 {[%emt 0:08:06][%csl LRb2,LRb5]} 14. Bxc6 {[%emt 0:03:33]} bxc6 {[%emt 0:00:04]} 15. Nd4 {[%emt 0:00:57][%cal Bf3d4,Bd4b3,Bb3c5][%mdl 32]} Bd7 {[%emt 0:05:21][%cal Of8e8]} 16. Nb3 {[%emt 0:06:32]} Rfe8 {[%emt 0:04:19]} 17. c3 {[%emt 0:02:37]} Qd6 {[%emt 0:05:06]} 18. Qd4 {[%emt 0:00:22]} Re7 {[%emt 0:02:39]} 19. h3 {[%emt 0:01:56]} a5 {[%emt 0:01:31]} (19... Kg7 $11) 20. Nc5 {[%emt 0:00:33]} Rae8 {[%emt 0:05:55]} (20... Re5 $14) 21. Rxe7 $16 {[%emt 0:00:13]} Qxe7 {[%emt 0:01:44]} 22. a4 $1 $36 {[%emt 0:01:14][%mdl 2048] Keeping Black busy. White is more active.} Bf5 {[%emt 0:01:13]} 23. b4 {[%emt 0:01:13]} Qe5 {[%emt 0:03:45]} 24. bxa5 {[%emt 0:07:35]} Qxd4 {[%emt 0:00:46]} 25. cxd4 {[%emt 0:00:02][%mdl 4096] Endgame. KRB-KRN} Ra8 {[%emt 0:00:05]} 26. a6 {[%emt 0:01:56]} Bc8 {[%emt 0:00:28]} 27. f3 {[%emt 0:08:27]} Bxa6 {[%emt 0:00:26]} 28. Kf2 {[%emt 0:00:20]} Kf8 {[%emt 0:00:25]} 29. Kg3 {[%emt 0:00:17][%mdl 1024] White has strong compensation.} Bc8 {[%emt 0:00:45]} 30. Kf4 {[%emt 0:00:49]} Ke7 {[%emt 0:01:49]} 31. a5 {[%emt 0:01:00]} Ba6 {[%emt 0:00:29]} 32. g4 {[%emt 0:00:49]} h6 {[%emt 0:00:40]} (32... Ra7 $16 33. Kg3 Kf8) 33. Re1+ $18 {[%emt 0:02:24]} Kf8 {[%emt 0:00:22]} 34. Ra1 {[%emt 0:00:33]} Ke7 $1 {[%emt 0:00:10]} 35. Kg3 {[%emt 0:02:50]} Kf8 {[%emt 0:00:30]} 36. Kh4 {[%emt 0:00:54]} Kg8 {[%emt 0:00:25]} 37. Re1 {[%emt 0:01:32]} Bb5 {[%emt 0:00:47] [#]} 38. a6 {[%emt 0:01:06]} Kf8 $2 {[%emt 0:02:31]} (38... Bxa6 $11 39. Kh5 Kg7) 39. Ra1 $16 {[%emt 0:00:26]} Ra7 {[%emt 0:00:06]} 40. Kg3 {[%emt 0:00:00]} Ke7 {[%emt 0:00:00]} 41. Kf4 {[%emt 0:00:14] aiming for Kf5.} Kf8 {[%emt 0:00:33]} 42. Ra3 {[%emt 0:00:55]} Bc4 {[%emt 0:00:36]} 43. Ke3 {[%emt 0:02:49]} Kg7 {[%emt 0:00:22]} 44. h4 {[%emt 0:00:15]} Kg6 {[%emt 0:00:34]} 45. Kf4 $1 {[%emt 0:00:35]} Kg7 {[%emt 0:00:19] [#]} (45... Be2 {keeps fighting.} 46. Re3 (46. h5+ Kg7 $18) 46... Bb5 (46... Bxa6 $2 {is the wrong capture.} 47. Ra3 $18) 47. h5+ Kg7) 46. Ra1 {[%emt 0:00:33]} ({Better is} 46. Kf5 $1 $18) 46... Bb5 {[%emt 0:00:20] [#]} (46... Kg6 $16 47. h5+ Kg7) 47. Kf5 $1 $18 {[%emt 0:01:51]} Be2 {[%emt 0:00:51]} 48. Ra3 {[%emt 0:00:36]} Bc4 {[%emt 0:00:39]} 49. f4 {[%emt 0:00:49]} Bf1 {[%emt 0:01:32]} 50. g5 {[%emt 0:00:34]} fxg5 {[%emt 0:01:24]} 51. fxg5 {[%emt 0:00:08]} h5 {[%emt 0:02:38]} 52. Ke5 {[%emt 0:00:52][%cal Og5g6] Strongly threatening g6!} Bc4 {[%emt 0:00:29]} 53. Ra1 {[%emt 0:01:02]} Bb5 {[%emt 0:00:59]} 54. Kf5 {[%emt 0:04:57]} Be2 {[%emt 0:00:20]} 55. Ra3 $2 {[%emt 0:00:21]} ({White should try} 55. Ra2 $18 Bc4 56. Ra1) 55... Bg4+ {[%emt 0:00:28][%mdl 8192]} (55... Bf1 $1 $11 {and Black is okay.}) 56. Kf4 {[%emt 0:00:46]} Be2 {[%emt 0:00:08]} 57. Ra2 {[%emt 0:00:42]} Bc4 {[%emt 0:00:43]} 58. Ra1 {[%emt 0:00:28]} Kg6 {[%emt 0:01:16]} (58... Bb5 {was worth a try.} 59. Ra3 Kg8) 59. Nd7 $2 {[%emt 0:01:02]} (59. Re1 $18) 59... Rxa6 $11 {[%emt 0:02:14] The position is equal.} 60. Rxa6 {[%emt 0:00:29]} Bxa6 {[%emt 0:00:22] KB-KN} 61. Ke5 {[%emt 0:00:45]} (61. Ne5+ Kg7 $16) 61... Be2 {[%emt 0:06:31]} 62. Nf6 {[%emt 0:00:27]} Kg7 {[%emt 0:00:42]} 63. Ne8+ {[%emt 0:05:28]} Kf8 {[%emt 0:00:41]} 64. Nxc7 {[%emt 0:00:39]} Ke7 {[%emt 0:01:02]} 65. Na8 $1 {[%emt 0:00:11]} Bg4 {[%emt 0:04:40]} 66. Nb6 {[%emt 0:00:13]} Bh3 {[%emt 0:03:42]} 67. Na4 {[%emt 0:00:18]} Be6 {[%emt 0:01:53]} 68. Nc5 {[%emt 0:01:45] Nxe6 would kill now.} Bc8 {[%emt 0:00:16]} 69. Nd3 {[%emt 0:00:34]} Bd7 {[%emt 0:00:26]} 70. Nf2 {[%emt 0:04:26]} Bc8 {[%emt 0:01:31]} 71. Nd3 {[%emt 0:01:16]} Bd7 {[%emt 0:01:40]} 72. Nb4 {[%emt 0:01:22]} Be8 {[%emt 0:00:17]} 73. Na2 {[%emt 0:00:34]} (73. Nd3 $5 Bd7 $8 $11) 73... Bd7 {[%emt 0:00:17]} 74. Nc3 {[%emt 0:00:04]} (74. Nb4 $5) 74... Bg4 {[%emt 0:00:26]} 75. Na4 {[%emt 0:00:06]} Bd7 {[%emt 0:01:58]} 76. Nc5 {[%emt 0:00:32]} Bc8 {[%emt 0:01:03]} 77. Kf4 {[%emt 0:00:10]} f6 {[%emt 0:02:05]} 78. Nd3 {[%emt 0:01:15]} Bd7 {[%emt 0:02:10]} 79. Nc1 {[%emt 0:01:33]} Kf7 {[%emt 0:01:15]} 80. Nb3 {[%emt 0:00:30]} Kg6 {[%emt 0:00:35]} 81. gxf6 {[%emt 0:01:25]} Kxf6 {[%emt 0:00:02]} 82. Nc5 {[%emt 0:02:44]} Bf5 {[%emt 0:01:20]} 83. Nb7 {[%emt 0:00:16]} Bc8 {[%emt 0:00:47]} 84. Nc5 {[%emt 0:00:12]} Bf5 {[%emt 0:00:11]} 85. Na6 {[%emt 0:00:06]} Bd7 {[%emt 0:01:14]} 86. Nb4 {[%emt 0:00:06]} Be8 {[%emt 0:00:14]} 87. Nd3 {[%emt 0:00:08]} Bg6 {[%emt 0:00:25]} 88. Nb4 {[%emt 0:00:30]} Be8 {[%emt 0:00:17]} 89. Na6 {[%emt 0:00:03]} Bd7 {[%emt 0:00:19]} 90. Nc5 {[%emt 0:00:59]} Bf5 {Black defended with fortune.   Weighted Error Value: White=0.32/Black=0.25 (precise) .  Loses game:     	---       	Black=1      Missed win:     	White=2     	---        Mistake:       	White=3     	Black=8      Inaccurate:     	White=5     	Black=2      OK:         	White=32    	Black=22     Best:        	White=4     	Black=5      Strong:       	White=3     	Black=1} 1/2-1/2

[Event "76th Montenegro Championship 2024"]
[Site "Podgorica"]
[Date "2024.02.15"]
[Round "11.11"]
[White "Popovic, Mateja"]
[Black "Nenezic, Danilo"]
[Result "0-1"]
[ECO "D31"]
[WhiteElo "1880"]
[BlackElo "2086"]
[Annotator "NA RC"]
[PlyCount "88"]
[EventDate "2024.02.06"]
[EventType "swiss"]
[EventCountry "MNE"]
[SourceTitle "playchess.com"]
[Source "ChessBase"]
[SourceQuality "1"]
[TimeControl "40/5400+30:1800+30"]

1. d4 {[%emt 0:00:03]} d5 {[%emt 0:07:15]} 2. c4 {[%emt 0:00:14]} e6 {[%emt 0:00:38]} 3. Nc3 {[%emt 0:00:18]} Be7 {[%emt 0:00:28]} 4. Nf3 {[%emt 0:01:22]} a6 {[%emt 0:01:09]} 5. a4 {[%emt 0:03:02]} a5 {[%emt 0:00:35]} 6. Bf4 {[%emt 0:06:08]} Nf6 {[%emt 0:00:44]} 7. e3 {[%emt 0:00:52]} O-O {[%emt 0:02:13]} 8. Bd3 {[%emt 0:08:03]} Nc6 {[%emt 0:03:37]} 9. Nb5 {[%emt 0:07:22]} Ne8 {[%emt 0:04:33]} 10. h4 {[%emt 0:09:36]} h6 {[%emt 0:04:25]} 11. g4 {[%emt 0:07:46]} dxc4 {[%emt 0:10:23]} 12. Bxc4 {[%emt 0:06:01]} e5 {[%emt 0:03:25]} 13. Nxe5 {[%emt 0:01:45]} Nxe5 {[%emt 0:04:15]} 14. Bxe5 {[%emt 0:05:44]} Bxh4 {[%emt 0:01:29]} 15. Qc2 {[%emt 0:08:57]} c6 {[%emt 0:05:37]} 16. Nc7 {[%emt 0:03:49]} Nxc7 {[%emt 0:02:58]} 17. Bxc7 {[%emt 0:00:12]} Qxc7 {[%emt 0:01:37]} 18. Rxh4 {[%emt 0:00:07]} Qe7 {[%emt 0:00:35]} 19. Rxh6 {[%emt 0:02:50]} Qb4+ {[%emt 0:02:53]} 20. Kf1 {[%emt 0:03:01]} Bf5 {[%emt 0:01:40]} 21. gxf5 {[%emt 0:00:26]} gxh6 {[%emt 0:00:44]} 22. f6 {[%emt 0:00:43]} Kh8 {[%emt 0:00:32]} 23. Ke2 {[%emt 0:00:59]} b5 {[%emt 0:06:57]} 24. Ba2 {[%emt 0:01:55]} bxa4 {[%emt 0:01:09]} 25. Rh1 {[%emt 0:02:19]} Qb5+ {[%emt 0:00:55]} 26. Bc4 {[%emt 0:00:10]} Qg5 {[%emt 0:00:17]} 27. Qe4 {[%emt 0:03:35]} Rfe8 {[%emt 0:12:02]} 28. Qf3 {[%emt 0:11:53]} Rab8 {[%emt 0:04:27]} 29. b3 {[%emt 0:03:44]} Rxb3 {[%emt 0:01:11]} 30. Bxb3 {[%emt 0:00:16]} axb3 {[%emt 0:00:11]} 31. Qxc6 {[%emt 0:01:29]} Re6 {[%emt 0:00:48]} 32. Qb7 {[%emt 0:01:09]} Rxf6 {[%emt 0:02:17]} 33. Qxb3 {[%emt 0:00:09]} Qg2 {[%emt 0:01:32]} 34. Rf1 {[%emt 0:00:27]} Kg7 {[%emt 0:04:26]} 35. Qa4 {[%emt 0:00:42]} Rf5 {[%emt 0:02:40]} 36. Qa1 {[%emt 0:00:30]} Qf3+ {[%emt 0:01:48]} 37. Kd2 {[%emt 0:00:17]} Rb5 {[%emt 0:02:14]} 38. Qc3 {[%emt 0:00:15]} Rf5 {[%emt 0:03:21]} 39. Ke1 {[%emt 0:00:38]} h5 {[%emt 0:00:19]} 40. Qc8 {[%emt 0:00:00]} Qg4 {[%emt 0:00:00]} 41. Qc6 {[%emt 0:04:39]} h4 {[%emt 0:03:41]} 42. Rh1 {[%emt 0:06:22]} h3 {[%emt 0:00:57]} 43. Qc7 {[%emt 0:04:16]} Rxf2 {[%emt 0:14:01]} 44. Qe5+ {[%emt 0:02:14]} Kg6 {[%emt 0:15:32]} 0-1

[Event "76th Montenegro Championship 2024"]
[Site "Podgorica"]
[Date "2024.02.15"]
[Round "11.12"]
[White "Sukovic, Andrej"]
[Black "Miletic, Vuk"]
[Result "1-0"]
[ECO "B22"]
[WhiteElo "2339"]
[BlackElo "2213"]
[Annotator "TA"]
[PlyCount "95"]
[EventDate "2024.02.06"]
[EventType "swiss"]
[EventCountry "MNE"]
[SourceTitle "playchess.com"]
[Source "ChessBase"]
[SourceQuality "1"]
[TimeControl "40/5400+30:1800+30"]

{[%evp 16,95,32,16,54,47,57,64,54,62,65,60,77,69,69,55,81,72,65,46,49,46,107,82,82,43,66,41,81,82,84,88,97,102,93,89,88,91,123,124,109,97,122,108,193,167,221,201,150,0,0,0,0,14,0,0,0,0,227,0,0,0,0,0,474,476,450,507,493,476,447,442,5306,159,29991,29992,29993,29994,29995,29992,29992,29993]} 1. e4 {[%emt 0:00:34]} c5 {[%emt 0:03:03]} 2. c3 {[%emt 0:00:11]} Nf6 {[%emt 0:00:33]} 3. e5 {[%emt 0:00:08]} Nd5 {[%emt 0:00:47]} 4. Nf3 {[%emt 0:00:09]} Nc6 {[%emt 0:03:44]} 5. Bc4 {[%emt 0:00:19][%cal Bf1c4,Bc4b3,Bb3c2][%mdl 32]} Nb6 {[%emt 0:01:58]} 6. Bb3 {[%emt 0:00:11]} c4 {[%emt 0:02:31]} 7. Bc2 {[%emt 0:00:09]} d6 {[%emt 0:06:17]} 8. exd6 {[%emt 0:00:16]} Qxd6 {[%emt 0:01:53]} 9. O-O {[%emt 0:00:15]} g6 {[%emt 0:00:10]} 10. Na3 {[%emt 0:04:33]} Bf5 {[%emt 0:07:11]} 11. Bxf5 {[%emt 0:12:55]} gxf5 {[%emt 0:00:01] Weiß steht etwas besser.} 12. b3 {[%emt 0:00:11]} cxb3 {[%emt 0:10:53]} 13. axb3 {[%emt 0:00:17][%cal Ba2b3,Bb3c4,Bc4c5][%mdl 32]} Bg7 {[%emt 0:01:03]} 14. d4 {[%emt 0:09:57]} O-O {[%emt 0:05:37]} 15. Nc4 {[%emt 0:05:15]} Nxc4 {[%emt 0:04:45]} 16. bxc4 {[%emt 0:00:07]} Rfe8 {[%emt 0:06:26]} 17. Nh4 {[%emt 0:07:39]} e6 {[%emt 0:00:58]} 18. Qh5 {[%emt 0:00:15]} Qc7 {[%emt 0:15:44]} (18... Ne7 $1 $14) 19. Re1 {[%emt 0:01:56]} Ne7 {[%emt 0:04:58]} 20. Nf3 {[%emt 0:16:00]} Ng6 $1 {[%emt 0:00:11]} (20... Qxc4 $2 21. Ng5 $18) 21. c5 {[%emt 0:09:17]} Qd7 {[%emt 0:08:36]} 22. Ng5 {[%emt 0:03:03]} Nf8 {[%emt 0:00:29]} 23. Rb1 {[%emt 0:04:48]} Rac8 {[%emt 0:06:23]} 24. Bf4 {[%emt 0:03:03]} f6 {[%emt 0:00:58]} 25. Nf3 {[%emt 0:00:10] Weiß steht deutlich aktiver.} Ng6 {[%emt 0:00:04] Pariert Nh4.} 26. Bd6 {[%emt 0:02:51]} Bf8 {[%emt 0:00:21]} 27. Bxf8 {[%emt 0:00:51]} Rxf8 {[%emt 0:00:08]} 28. Qh6 {[%emt 0:02:25]} Rc6 {[%emt 0:02:39]} 29. h4 {[%emt 0:06:23][%cal Bh2h4,Bh4h5][%mdl 32]} b6 {[%emt 0:00:10]} (29... Rf7 $16 30. c4 Qc7) 30. h5 $18 {[%emt 0:01:36]} Ne7 {[%emt 0:01:03]} (30... Nh8 {war einen Versuch wert.} 31. d5 exd5 32. cxb6 (32. Nd4 Nf7 $18) 32... axb6) 31. c4 {[%emt 0:01:55]} bxc5 {[%emt 0:01:19] [#]} 32. d5 {[%emt 0:00:04]} exd5 $11 {[%emt 0:01:40]} 33. Nh4 {[%emt 0:00:18] Weiss will Rb3 spielen.} Re6 {[%emt 0:02:33]} 34. Rxe6 {[%emt 0:03:11]} Qxe6 {[%emt 0:00:01]} 35. Rb3 $40 {[%emt 0:00:02][%mdl 128] Weiss hat einigen Angriff.} f4 {[%emt 0:01:20] Lässt Rg3+ nicht zu} 36. Qxf4 {[%emt 0:01:42] Re3 wäre nun fies.} Qe1+ {[%emt 0:00:54]} 37. Kh2 {[%emt 0:00:01][%mdl 1024] Weiss hat starke Kompensation.} Qe5 {[%emt 0:00:39]} 38. Rg3+ {[%emt 0:00:05]} (38. Qxe5 {vereinfacht} fxe5 39. Rb7 Rf7 40. Rxa7 e4 41. cxd5 Nxd5 42. Ra8+) 38... Kh8 {[%emt 0:00:26]} 39. Qh6 {[%emt 0:00:15]} Rg8 {[%emt 0:00:41][%mdl 8192] Es drohte Qg7+} (39... Rf7 $1 $11 {und Schwarz ist OK.}) 40. f4 $18 {[%emt 0:00:00]} Qe6 {[%emt 0:00:00] Zielt auf ...Rxg3 ab.} 41. cxd5 {[%emt 0:02:56]} Qd6 {[%emt 0:14:57] [#]} 42. Kh1 $1 {[%emt 0:15:10] Schwarz muss nun Re3 beachten.} c4 {[%emt 0:05:53]} (42... Rxg3 $2 {zu gefräßig.} 43. Qf8+ Rg8 44. Ng6+ Nxg6 45. Qxd6) 43. Re3 {[%emt 0:01:45] jetzt Re6 und aus.} c3 {[%emt 0:10:02]} (43... Rg7 $142 44. Re6 Qd7 45. Qxf6 (45. Rxf6 Kg8 $18) 45... Nxd5 46. Qf8+ (46. Qe5 Nc7 $18) 46... Rg8) 44. Rxc3 $2 {[%emt 0:03:00]} (44. Re6 $18 {und der Rest ist Schweigen.} Qd7 45. Qxf6+ (45. Rxf6 $2 {ist das falsche Schlagen.} c2 $19) 45... Rg7 46. h6 (46. Qxc3 Nxd5 47. Qe5 Nc7 $18)) 44... Qa6 {[%emt 0:01:38] Verliert die Partie.} (44... Rg7 $16) 45. Rc7 {[%emt 0:04:01] Weiß setzt Matt.} Qf1+ {[%emt 0:00:50]} 46. Kh2 {[%emt 0:00:05]} Qf2 {[%emt 0:00:30]} 47. Ng6+ {[%emt 0:00:30]} Rxg6 {[%emt 0:00:28]} 48. hxg6 {[%emt 0:00:07] Gewichteter Fehlerwert: Weiß=0.18 (sehr präzise) /Schwarz=0.41.  Verlustzug:     	---       	Schwarz=2     Gewinn verpasst:   	Weiß=2     	---        Fehler:       	Weiß=1     	Schwarz=4     Ungenau:       	Weiß=1     	Schwarz=3     OK:         	Weiß=16    	Schwarz=12    Bester:       	Weiß=5     	Schwarz=2     Stark:        	---       	Schwarz=1} 1-0